{"text_format":"1","workbook":"xlsx","n_sheets":7,"sheets":["Introduction","Project Overview","Communities (CM)","Safe and Integrated Trans","Econ Competitiveness","Resilience and Climate Action","Summary"],"not_rendered":{"charts":0,"images":1,"macros":1,"external_links":0,"defined_names":6,"comments":2,"pivot_tables":0},"unopened":[],"bounds":{"document_bytes":16777216,"sheet_cells":100000,"rows_first":2000,"rows_last":500,"rows_between":2000,"halvings":0,"cell_chars":16384,"cell_head_chars":4096},"cells_cut":0,"cells_raw":0,"read":"whole","date_system":"1900"}

{"sheet":"Introduction","index":0,"n_rows":57,"n_cols":17,"rows_kept":57,"cut":false,"hidden":false,"merged":[]}
[]
[]
[]
[]
[]
[]
[]
[]
[]
[]
[]
[]
[]
[]
[]
[]
[]
[]
[]
[]
[]
[]
[]
[]
[]
[]
[null,null,null,null,null,null,null,null,null,null,null,null,null,null,null,"Contact for Support:"]
[null,null,null,null,null,null,null,null,null,null,null,null,null,null,null,"integratedplanning@gov.bc.ca"]
[]
[]
[]
[]
[]
[]
[]
[]
[]
[]
[]
[]
[]
[]
[]
[]
[]
[]
[null,null,null,null,null,null,null,null,null,null,null,null,null,null,null,"Stage","YYYY/MM/DD: Name"]
[null,null,null,null,null,null,null,null,null,null,null,null,null,null,1,{"$f":"IF(ISBLANK(Q48),\"\",_xlfn.CONCAT(\"Stage \",O48))","v":""}]
[null,null,null,null,null,null,null,null,null,null,null,null,null,null,2,{"$f":"IF(ISBLANK(Q49),\"\",_xlfn.CONCAT(\"Stage \",O49))","v":""}]
[null,null,null,null,null,null,null,null,null,null,null,null,null,null,3,""]
[null,null,null,null,null,null,null,null,null,null,null,null,null,null,4,""]
[null,null,null,null,null,null,null,null,null,null,null,null,null,null,5,""]
[null,null,null,null,null,null,null,null,null,null,null,null,null,null,6,""]
[null,null,null,null,null,null,null,null,null,null,null,null,null,null,7,""]
[null,null,null,null,null,null,null,null,null,null,null,null,null,null,8,""]
[null,null,null,null,null,null,null,null,null,null,null,null,null,null,9,""]
[null,null,null,null,null,null,null,null,null,null,null,null,null,null,10,""]

{"sheet":"Project Overview","index":1,"n_rows":0,"n_cols":0,"rows_kept":0,"cut":false,"hidden":false,"merged":[]}

{"sheet":"Communities (CM)","index":2,"n_rows":19,"n_cols":7,"rows_kept":19,"cut":false,"hidden":false,"merged":[[3,1,18,1]]}
[null,null,null,null,"Stage Date (YYYY/MM/DD) - Name"]
[null,null,null,null,{"$f":"E1","v":"Stage Date (YYYY/MM/DD) - Name"},{"$f":"E1","v":"Stage Date (YYYY/MM/DD) - Name"},{"$f":"E1","v":"Stage Date (YYYY/MM/DD) - Name"}]
[null,null,"Criteria_ID","Criteria","Relevance","Opportunities","Comments"]
[null,"Complete and Connected Communities",null,"Objective 1: Locate development close to sustainable travel options, jobs and services."]
[null,null,"CM 1.1","CM 1.1 Are there active transportation implications? e.g. Is active transportation integrated into the project? Is it a central design component? ","Directly Relevant"]
[null,null,"CM 1.2","CM 1.2 Are there transit implications? e.g. Is transit integrated into the project? Is it a central design component? ","Directly Relevant"]
[null,null,"CM 1.3","CM 1.3 Could the project encourage a mix of uses, allowing people to live, work, and play in their local communities? (e.g. a combination of residential, commercial, and industrial uses)","Directly Relevant"]
[null,null,"CM 1.4","CM 1.4 Does the project meet local OCP*, transportation plan or neighborhood plan goals, objectives, and policies, such as prioritizing active transportation or transit? \n\n*OCP = Official Community Plan","Directly Relevant"]
[null,null,null,"Objective 2: Support affordability and choice by creating a mix of housing types that align with housing needs "]
[null,null,"CM 2.1","CM 2.1 Could the project include or consider housing? i.e. Does the project help to connect people to housing with transit or active transportation options? Is there increased accessibility to housing?","Directly Relevant"]
[null,null,"CM 2.2","CM 2.2 Could the project create a wider range of affordable housing options? E.g. type, tenure or size.","Directly Relevant"]
[null,null,"CM 2.3","CM 2.3 Could the project encourage a mix of housing types? i.e. is there an opportunity for housing diversity beyond single family home? E.g.. duplex, townhouse, apartment.","Directly Relevant"]
[null,null,"CM 2.4","CM 2.4 Could the project support communities in achieving their housing projections as outlined in their Housing Needs Reports and Official Community Plans?","Directly Relevant"]
[null,null,null,"Objective 3: Support the priorities of BC's diverse communities to achieve shared benefits "]
[null,null,"CM 3.1","CM 3.1 Could the project or funding consider or address local community needs? e.g. housing, community amenities, transportation amenities, increased accessibility.","Directly Relevant"]
[null,null,"CM 3.2","CM 3.2 Does the project have an understanding of gender, diversity and inclusion information and identify higher proportions of low income households and  areas of historic underinvestment in and surrounding the project area? ","Directly Relevant"]
[null,null,"CM 3.3","CM 3.3 Could the project consider opportunities for reconciliation with First Nations within the project area?","Directly Relevant"]
[null,null,"CM 3.4","CM 3.4 What does reconciliation look like for the First Nations in the project area?","Directly Relevant"]
[null,null,"CM 3.5","CM 3.5 Does the project consider the short, medium and long-term strategies and plans of other Ministries/agencies/jurisdictions within the study area?","Directly Relevant"]

{"sheet":"Safe and Integrated Trans","index":3,"n_rows":15,"n_cols":7,"rows_kept":15,"cut":false,"hidden":false,"merged":[[3,1,14,1]]}
[null,null,null,null,"Stage Date (YYYY/MM/DD) - Name"]
[null,null,null,null,{"$f":"E1","v":"Stage Date (YYYY/MM/DD) - Name"},{"$f":"E1","v":"Stage Date (YYYY/MM/DD) - Name"},{"$f":"E1","v":"Stage Date (YYYY/MM/DD) - Name"}]
[null,null,"Criteria_ID","Criteria","Relevance","Opportunities","Comments"]
[null,"Safe and Integrated Transportation Systems",null,"Objective 1: Provide a safe, seamless and reliable system across modes and jurisdictions"]
[null,null,"TS 1.1","TS 1.1 Are there other projects or initiatives planned for this area that could align with the project?","Directly Relevant"]
[null,null,"TS 1.2","TS 1.2 Could the project reduce serious traffic injuries and fatalities for vehicles, pedestrians, and cyclists thereby supporting the Vision Zero* initiative?\n\n*Vision Zero is a strategy to eliminate all traffic fatalities and severe injuries, while increasing safe, healthy, equitable mobility for all.","Directly Relevant"]
[null,null,"TS 1.3","TS 1.3 Could the project consider integration with existing transportation systems, such as roads, bridges, tunnels, railways, etc. to seamlessly move goods and people? ","Directly Relevant"]
[null,null,"TS 1.4","TS 1.4 Could the project enhance or improve the ability to seamlessly and safely transfer among various modes of transportation within a multi-modal transportation system?","Directly Relevant"]
[null,null,null,"Objective 2: Enable alternative mode choices for people and goods to reduce total vehicle travel activity within networks"]
[null,null,"TS 2.1","TS 2.1 Could the project make active transportation and public transit more convenient by increasing safety, accessibility, directness, performance and reliability?","Directly Relevant"]
[null,null,"TS 2.2","TS 2.2 Could the project result in a more efficient and reliable supply chain for goods movement?","Directly Relevant"]
[null,null,null,"Objective 3: Invest in public transportation and active transportation infrastructure that creates choices for all users"]
[null,null,"TS 3.1","TS 3.1 Are there opportunities for incorporating or expanding public transit or active transportation infrastructure? E.g. widened shoulder, improved transit stops, multi use path, cycle highway.","Directly Relevant"]
[null,null,"TS 3.2","TS 3.2 Could the project create/promote community-specific public transit and active transportation networks that are safe, accessible, and convenient for all ages and abilities?","Directly Relevant"]
[null,null,"TS 3.3","TS 3.3 Could the project support implementation of new mobility solutions such as car-share, ride-share, mobility hubs*, scooters, etc.?\n\n*Mobility hub is a place where different sustainable transportation modes - walking, biking, transit, and shared mobility - are integrated seamlessly to help promote connectivity and support surrounding land uses. This can range from a bus stop with parking for shared bikes by a cycle route to a transit station where different sustainable transportation modes converge and where there is a concentration of employment, housing, shopping, and/or recreation.","Directly Relevant"]

{"sheet":"Econ Competitiveness","index":4,"n_rows":13,"n_cols":7,"rows_kept":13,"cut":false,"hidden":false,"merged":[[3,1,12,1]]}
[null,null,null,null,"Stage Date (YYYY/MM/DD) - Name"]
[null,null,null,null,{"$f":"E1","v":"Stage Date (YYYY/MM/DD) - Name"},{"$f":"E1","v":"Stage Date (YYYY/MM/DD) - Name"},{"$f":"E1","v":"Stage Date (YYYY/MM/DD) - Name"}]
[null,null,"Criteria_ID","Criteria","Relevance","Opportunities","Comments"]
[null,"Economic Competitiveness and Prosperity",null,"Objective 1: Connect people to jobs and services"]
[null,null,"EC 1.1","EC 1.1 Could the project improve access to workforce, employment opportunities, or educational opportunities by supporting a range of transportation options including, public transit, active transportation, and car share?","Directly Relevant"]
[null,null,"EC 1.2","EC 1.2 Could the project improve access to community and business services by supporting a range of transportation options including, public transit, active transportation, and car share?","Directly Relevant"]
[null,null,null,"Objective 2: Facilitate moving goods to markets with infrastructure and services"]
[null,null,"EC 2.1","EC 2.1 Could the project enhance goods movement efficiency and reliability?","Directly Relevant"]
[null,null,"EC 2.2","EC 2.2 Could the project result in a more seamless and reliable transportation of goods to local and international customers? E.g. additional lanes, improved road conditions.","Directly Relevant"]
[null,null,"EC 2.3","EC 2.3 Could the project enhance the competitiveness BC’s transportation networks, such as by bringing goods to market faster?","Directly Relevant"]
[null,null,null,"Objective 3: Plan land use to maximize economic development potential"]
[null,null,"EC 3.1","EC 3.1 Could the project support economic development e.g., employment, access to industrial lands, improved access to urban job centres.","Directly Relevant"]
[null,null,"EC 3.2","EC 3.2 Are there opportunities to collaborate with local governments, First Nations, or port authorities to encourage adequate supply and better utilization of employment or industrial lands?","Directly Relevant"]

{"sheet":"Resilience and Climate Action","index":5,"n_rows":13,"n_cols":7,"rows_kept":13,"cut":false,"hidden":false,"merged":[[3,1,12,1]]}
[null,null,null,null,"Stage Date (YYYY/MM/DD) - Name"]
[null,null,null,null,{"$f":"E1","v":"Stage Date (YYYY/MM/DD) - Name"},{"$f":"E1","v":"Stage Date (YYYY/MM/DD) - Name"},{"$f":"E1","v":"Stage Date (YYYY/MM/DD) - Name"}]
[null,null,"Criteria_ID","Criteria","Relevance","Opportunities","Comments"]
[null,"Resilience and Climate Action",null,"Objective 1: Support transportation initiatives that result in lower GHG emissions"]
[null,null,"CA 1.1","CA 1.1 Could the project support the CleanBC Roadmap to 2030 Transportation Pathway action to reduce distance travelled by motor vehicle?","Directly Relevant"]
[null,null,"CA 1.2","CA 1.2 Could the project support the CleanBC, Roadmap to 2030 Transportation Pathway action to encourage a mode shift to more energy efficient transportation i.e., personal vehicle to walking, cycling, transit and commercial heavy duty on road vehicles goods movement to rail, water, and cargo bike?","Directly Relevant"]
[null,null,null,"Objective 2: Develop infrastructure solutions that emphasize future resiliency of transportation systems"]
[null,null,"CA 2.1","CA 2.1 Has a resiliency framework been considered/adopted in the project plans?","Directly Relevant"]
[null,null,"CA 2.2","CA 2.2 Could the project integrate design elements aimed primarily at addressing long-term resiliency?","Directly Relevant"]
[null,null,null,"Objective 3: Support resilient communities and infrastructure that can better adapt to climate change"]
[null,null,"CA 3.1","CA 3.1 Could this project help communities/\norganizations develop capacity to prepare, avoid/mitigate, absorb, recover and/or adapt to the effects of shocks and stresses of climate change?","Directly Relevant"]
[null,null,"CA 3.2","CA 3.2 Could the project reduce projected Vehicle Kilometres Travelled (VKT)? i.e. does the project support transit and active transportation? Are commute/travel times reduced?","Directly Relevant"]
[null,null,"CA 3.3","CA 3.3 Could the project help reduce emissions of air pollutants, such as: particulate matter (including dust), ground-level ozone, carbon monoxide, sulfur oxides, nitrogen oxides, lead, and volatile organic compounds?","Directly Relevant"]

{"sheet":"Summary","index":6,"n_rows":51,"n_cols":7,"rows_kept":51,"cut":false,"hidden":false,"merged":[[41,1,50,1],[31,1,40,1],[19,1,30,1],[3,1,18,1],[0,4,0,6]]}
[null,null,null,"Choose Stage of Work:"]
[null,null,null,null,{"$f":"E1","v":0},{"$f":"E1","v":0},{"$f":"E1","v":0}]
[null,null,"Criteria_ID","Criteria","Relevance","Opportunities","Comments"]
[null,"Complete and Connected Communities",null,"CM Objective 1: Locate development close to sustainable travel options, jobs and services."]
[null,null,"CM 1.1","CM 1.1 Are there active transportation implications? e.g. Is active transportation integrated into the project? Is it a central design component? ",{"$f":"IFERROR(IF(ISBLANK(INDEX(Assessment_CM, MATCH($C5, Criteria_CM, 0), MATCH(1, (StageDates_CM=E$2)*(Comments_CM=E$3), 0))),\"\",INDEX(Assessment_CM, MATCH($C5, Criteria_CM, 0), MATCH(1, (StageDates_CM=E$2)*(Comments_CM=E$3), 0))),\"-\")","v":"-"},{"$f":"IFERROR(IF(ISBLANK(INDEX(Assessment_CM, MATCH($C5, Criteria_CM, 0), MATCH(1, (StageDates_CM=F$2)*(Comments_CM=F$3), 0))),\"\",INDEX(Assessment_CM, MATCH($C5, Criteria_CM, 0), MATCH(1, (StageDates_CM=F$2)*(Comments_CM=F$3), 0))),\"-\")","v":"-"},{"$f":"IFERROR(IF(ISBLANK(INDEX(Assessment_CM, MATCH($C5, Criteria_CM, 0), MATCH(1, (StageDates_CM=G$2)*(Comments_CM=G$3), 0))),\"\",INDEX(Assessment_CM, MATCH($C5, Criteria_CM, 0), MATCH(1, (StageDates_CM=G$2)*(Comments_CM=G$3), 0))),\"-\")","v":"-"}]
[null,null,"CM 1.2","CM 1.2 Are there transit implications? e.g. Is transit integrated into the project? Is it a central design component? ",{"$f":"IFERROR(IF(ISBLANK(INDEX(Assessment_CM, MATCH($C6, Criteria_CM, 0), MATCH(1, (StageDates_CM=E$2)*(Comments_CM=E$3), 0))),\"\",INDEX(Assessment_CM, MATCH($C6, Criteria_CM, 0), MATCH(1, (StageDates_CM=E$2)*(Comments_CM=E$3), 0))),\"-\")","v":"-"},{"$f":"IFERROR(IF(ISBLANK(INDEX(Assessment_CM, MATCH($C6, Criteria_CM, 0), MATCH(1, (StageDates_CM=F$2)*(Comments_CM=F$3), 0))),\"\",INDEX(Assessment_CM, MATCH($C6, Criteria_CM, 0), MATCH(1, (StageDates_CM=F$2)*(Comments_CM=F$3), 0))),\"-\")","v":"-"},{"$f":"IFERROR(IF(ISBLANK(INDEX(Assessment_CM, MATCH($C6, Criteria_CM, 0), MATCH(1, (StageDates_CM=G$2)*(Comments_CM=G$3), 0))),\"\",INDEX(Assessment_CM, MATCH($C6, Criteria_CM, 0), MATCH(1, (StageDates_CM=G$2)*(Comments_CM=G$3), 0))),\"-\")","v":"-"}]
[null,null,"CM 1.3","CM 1.3 Could the project encourage a mix of uses, allowing people to live, work, and play in their local communities? (e.g. a combination of residential, commercial, and industrial uses)",{"$f":"IFERROR(IF(ISBLANK(INDEX(Assessment_CM, MATCH($C7, Criteria_CM, 0), MATCH(1, (StageDates_CM=E$2)*(Comments_CM=E$3), 0))),\"\",INDEX(Assessment_CM, MATCH($C7, Criteria_CM, 0), MATCH(1, (StageDates_CM=E$2)*(Comments_CM=E$3), 0))),\"-\")","v":"-"},{"$f":"IFERROR(IF(ISBLANK(INDEX(Assessment_CM, MATCH($C7, Criteria_CM, 0), MATCH(1, (StageDates_CM=F$2)*(Comments_CM=F$3), 0))),\"\",INDEX(Assessment_CM, MATCH($C7, Criteria_CM, 0), MATCH(1, (StageDates_CM=F$2)*(Comments_CM=F$3), 0))),\"-\")","v":"-"},{"$f":"IFERROR(IF(ISBLANK(INDEX(Assessment_CM, MATCH($C7, Criteria_CM, 0), MATCH(1, (StageDates_CM=G$2)*(Comments_CM=G$3), 0))),\"\",INDEX(Assessment_CM, MATCH($C7, Criteria_CM, 0), MATCH(1, (StageDates_CM=G$2)*(Comments_CM=G$3), 0))),\"-\")","v":"-"}]
[null,null,"CM 1.4","CM 1.4 Does the project meet local OCP*, transportation plan or neighborhood plan goals, objectives, and policies, such as prioritizing active transportation or transit? \n\n*OCP = Official Community Plan",{"$f":"IFERROR(IF(ISBLANK(INDEX(Assessment_CM, MATCH($C8, Criteria_CM, 0), MATCH(1, (StageDates_CM=E$2)*(Comments_CM=E$3), 0))),\"\",INDEX(Assessment_CM, MATCH($C8, Criteria_CM, 0), MATCH(1, (StageDates_CM=E$2)*(Comments_CM=E$3), 0))),\"-\")","v":"-"},{"$f":"IFERROR(IF(ISBLANK(INDEX(Assessment_CM, MATCH($C8, Criteria_CM, 0), MATCH(1, (StageDates_CM=F$2)*(Comments_CM=F$3), 0))),\"\",INDEX(Assessment_CM, MATCH($C8, Criteria_CM, 0), MATCH(1, (StageDates_CM=F$2)*(Comments_CM=F$3), 0))),\"-\")","v":"-"},{"$f":"IFERROR(IF(ISBLANK(INDEX(Assessment_CM, MATCH($C8, Criteria_CM, 0), MATCH(1, (StageDates_CM=G$2)*(Comments_CM=G$3), 0))),\"\",INDEX(Assessment_CM, MATCH($C8, Criteria_CM, 0), MATCH(1, (StageDates_CM=G$2)*(Comments_CM=G$3), 0))),\"-\")","v":"-"}]
[null,null,null,"CM Objective 2: Support affordability and choice by creating a mix of housing types that align with housing needs "]
[null,null,"CM 2.1","CM 2.1 Could the project include or consider housing? i.e. Does the project help to connect people to housing with transit or active transportation options? Is there increased accessibility to housing?",{"$f":"IFERROR(IF(ISBLANK(INDEX(Assessment_CM, MATCH($C10, Criteria_CM, 0), MATCH(1, (StageDates_CM=E$2)*(Comments_CM=E$3), 0))),\"\",INDEX(Assessment_CM, MATCH($C10, Criteria_CM, 0), MATCH(1, (StageDates_CM=E$2)*(Comments_CM=E$3), 0))),\"-\")","v":"-"},{"$f":"IFERROR(IF(ISBLANK(INDEX(Assessment_CM, MATCH($C10, Criteria_CM, 0), MATCH(1, (StageDates_CM=F$2)*(Comments_CM=F$3), 0))),\"\",INDEX(Assessment_CM, MATCH($C10, Criteria_CM, 0), MATCH(1, (StageDates_CM=F$2)*(Comments_CM=F$3), 0))),\"-\")","v":"-"},{"$f":"IFERROR(IF(ISBLANK(INDEX(Assessment_CM, MATCH($C10, Criteria_CM, 0), MATCH(1, (StageDates_CM=G$2)*(Comments_CM=G$3), 0))),\"\",INDEX(Assessment_CM, MATCH($C10, Criteria_CM, 0), MATCH(1, (StageDates_CM=G$2)*(Comments_CM=G$3), 0))),\"-\")","v":"-"}]
[null,null,"CM 2.2","CM 2.2 Could the project create a wider range of affordable housing options? E.g. type, tenure or size.",{"$f":"IFERROR(IF(ISBLANK(INDEX(Assessment_CM, MATCH($C11, Criteria_CM, 0), MATCH(1, (StageDates_CM=E$2)*(Comments_CM=E$3), 0))),\"\",INDEX(Assessment_CM, MATCH($C11, Criteria_CM, 0), MATCH(1, (StageDates_CM=E$2)*(Comments_CM=E$3), 0))),\"-\")","v":"-"},{"$f":"IFERROR(IF(ISBLANK(INDEX(Assessment_CM, MATCH($C11, Criteria_CM, 0), MATCH(1, (StageDates_CM=F$2)*(Comments_CM=F$3), 0))),\"\",INDEX(Assessment_CM, MATCH($C11, Criteria_CM, 0), MATCH(1, (StageDates_CM=F$2)*(Comments_CM=F$3), 0))),\"-\")","v":"-"},{"$f":"IFERROR(IF(ISBLANK(INDEX(Assessment_CM, MATCH($C11, Criteria_CM, 0), MATCH(1, (StageDates_CM=G$2)*(Comments_CM=G$3), 0))),\"\",INDEX(Assessment_CM, MATCH($C11, Criteria_CM, 0), MATCH(1, (StageDates_CM=G$2)*(Comments_CM=G$3), 0))),\"-\")","v":"-"}]
[null,null,"CM 2.3","CM 2.3 Could the project encourage a mix of housing types? i.e. is there an opportunity for housing diversity beyond single family home? E..g. duplex, townhouse, apartment.",{"$f":"IFERROR(IF(ISBLANK(INDEX(Assessment_CM, MATCH($C12, Criteria_CM, 0), MATCH(1, (StageDates_CM=E$2)*(Comments_CM=E$3), 0))),\"\",INDEX(Assessment_CM, MATCH($C12, Criteria_CM, 0), MATCH(1, (StageDates_CM=E$2)*(Comments_CM=E$3), 0))),\"-\")","v":"-"},{"$f":"IFERROR(IF(ISBLANK(INDEX(Assessment_CM, MATCH($C12, Criteria_CM, 0), MATCH(1, (StageDates_CM=F$2)*(Comments_CM=F$3), 0))),\"\",INDEX(Assessment_CM, MATCH($C12, Criteria_CM, 0), MATCH(1, (StageDates_CM=F$2)*(Comments_CM=F$3), 0))),\"-\")","v":"-"},{"$f":"IFERROR(IF(ISBLANK(INDEX(Assessment_CM, MATCH($C12, Criteria_CM, 0), MATCH(1, (StageDates_CM=G$2)*(Comments_CM=G$3), 0))),\"\",INDEX(Assessment_CM, MATCH($C12, Criteria_CM, 0), MATCH(1, (StageDates_CM=G$2)*(Comments_CM=G$3), 0))),\"-\")","v":"-"}]
[null,null,"CM 2.4","CM 2.4 Could the project support communities in acheiving their housing projections as outlined in their Housing Needs Reports and Official Community Plans?",{"$f":"IFERROR(IF(ISBLANK(INDEX(Assessment_CM, MATCH($C13, Criteria_CM, 0), MATCH(1, (StageDates_CM=E$2)*(Comments_CM=E$3), 0))),\"\",INDEX(Assessment_CM, MATCH($C13, Criteria_CM, 0), MATCH(1, (StageDates_CM=E$2)*(Comments_CM=E$3), 0))),\"-\")","v":"-"},{"$f":"IFERROR(IF(ISBLANK(INDEX(Assessment_CM, MATCH($C13, Criteria_CM, 0), MATCH(1, (StageDates_CM=F$2)*(Comments_CM=F$3), 0))),\"\",INDEX(Assessment_CM, MATCH($C13, Criteria_CM, 0), MATCH(1, (StageDates_CM=F$2)*(Comments_CM=F$3), 0))),\"-\")","v":"-"},{"$f":"IFERROR(IF(ISBLANK(INDEX(Assessment_CM, MATCH($C13, Criteria_CM, 0), MATCH(1, (StageDates_CM=G$2)*(Comments_CM=G$3), 0))),\"\",INDEX(Assessment_CM, MATCH($C13, Criteria_CM, 0), MATCH(1, (StageDates_CM=G$2)*(Comments_CM=G$3), 0))),\"-\")","v":"-"}]
[null,null,null,"CM Objective 3: Support the priorities of BC's diverse communities to achieve shared benefits "]
[null,null,"CM 3.1","CM 3.1 Could the project or funding consider or address local community needs? e.g. housing, community amenities, transportation amenities, increased accessibility.",{"$f":"IFERROR(IF(ISBLANK(INDEX(Assessment_CM, MATCH($C15, Criteria_CM, 0), MATCH(1, (StageDates_CM=E$2)*(Comments_CM=E$3), 0))),\"\",INDEX(Assessment_CM, MATCH($C15, Criteria_CM, 0), MATCH(1, (StageDates_CM=E$2)*(Comments_CM=E$3), 0))),\"-\")","v":"-"},{"$f":"IFERROR(IF(ISBLANK(INDEX(Assessment_CM, MATCH($C15, Criteria_CM, 0), MATCH(1, (StageDates_CM=F$2)*(Comments_CM=F$3), 0))),\"\",INDEX(Assessment_CM, MATCH($C15, Criteria_CM, 0), MATCH(1, (StageDates_CM=F$2)*(Comments_CM=F$3), 0))),\"-\")","v":"-"},{"$f":"IFERROR(IF(ISBLANK(INDEX(Assessment_CM, MATCH($C15, Criteria_CM, 0), MATCH(1, (StageDates_CM=G$2)*(Comments_CM=G$3), 0))),\"\",INDEX(Assessment_CM, MATCH($C15, Criteria_CM, 0), MATCH(1, (StageDates_CM=G$2)*(Comments_CM=G$3), 0))),\"-\")","v":"-"}]
[null,null,"CM 3.2","CM 3.2 Does the project have an understanding of gender, diversity and inclusion information and identify higher proportions of low income households and and areas of historic underinvestment in and surrounding the project area? ",{"$f":"IFERROR(IF(ISBLANK(INDEX(Assessment_CM, MATCH($C16, Criteria_CM, 0), MATCH(1, (StageDates_CM=E$2)*(Comments_CM=E$3), 0))),\"\",INDEX(Assessment_CM, MATCH($C16, Criteria_CM, 0), MATCH(1, (StageDates_CM=E$2)*(Comments_CM=E$3), 0))),\"-\")","v":"-"},{"$f":"IFERROR(IF(ISBLANK(INDEX(Assessment_CM, MATCH($C16, Criteria_CM, 0), MATCH(1, (StageDates_CM=F$2)*(Comments_CM=F$3), 0))),\"\",INDEX(Assessment_CM, MATCH($C16, Criteria_CM, 0), MATCH(1, (StageDates_CM=F$2)*(Comments_CM=F$3), 0))),\"-\")","v":"-"},{"$f":"IFERROR(IF(ISBLANK(INDEX(Assessment_CM, MATCH($C16, Criteria_CM, 0), MATCH(1, (StageDates_CM=G$2)*(Comments_CM=G$3), 0))),\"\",INDEX(Assessment_CM, MATCH($C16, Criteria_CM, 0), MATCH(1, (StageDates_CM=G$2)*(Comments_CM=G$3), 0))),\"-\")","v":"-"}]
[null,null,"CM 3.3","CM 3.3 Could the project consider opportunities for reconciliation with First Nations within the project area?",{"$f":"IFERROR(IF(ISBLANK(INDEX(Assessment_CM, MATCH($C17, Criteria_CM, 0), MATCH(1, (StageDates_CM=E$2)*(Comments_CM=E$3), 0))),\"\",INDEX(Assessment_CM, MATCH($C17, Criteria_CM, 0), MATCH(1, (StageDates_CM=E$2)*(Comments_CM=E$3), 0))),\"-\")","v":"-"},{"$f":"IFERROR(IF(ISBLANK(INDEX(Assessment_CM, MATCH($C17, Criteria_CM, 0), MATCH(1, (StageDates_CM=F$2)*(Comments_CM=F$3), 0))),\"\",INDEX(Assessment_CM, MATCH($C17, Criteria_CM, 0), MATCH(1, (StageDates_CM=F$2)*(Comments_CM=F$3), 0))),\"-\")","v":"-"},{"$f":"IFERROR(IF(ISBLANK(INDEX(Assessment_CM, MATCH($C17, Criteria_CM, 0), MATCH(1, (StageDates_CM=G$2)*(Comments_CM=G$3), 0))),\"\",INDEX(Assessment_CM, MATCH($C17, Criteria_CM, 0), MATCH(1, (StageDates_CM=G$2)*(Comments_CM=G$3), 0))),\"-\")","v":"-"}]
[null,null,"CM 3.4","CM 3.4 What does reconciliation look like for the First Nations in the project area?",{"$f":"IFERROR(IF(ISBLANK(INDEX(Assessment_CM, MATCH($C18, Criteria_CM, 0), MATCH(1, (StageDates_CM=E$2)*(Comments_CM=E$3), 0))),\"\",INDEX(Assessment_CM, MATCH($C18, Criteria_CM, 0), MATCH(1, (StageDates_CM=E$2)*(Comments_CM=E$3), 0))),\"-\")","v":"-"},{"$f":"IFERROR(IF(ISBLANK(INDEX(Assessment_CM, MATCH($C18, Criteria_CM, 0), MATCH(1, (StageDates_CM=F$2)*(Comments_CM=F$3), 0))),\"\",INDEX(Assessment_CM, MATCH($C18, Criteria_CM, 0), MATCH(1, (StageDates_CM=F$2)*(Comments_CM=F$3), 0))),\"-\")","v":"-"},{"$f":"IFERROR(IF(ISBLANK(INDEX(Assessment_CM, MATCH($C18, Criteria_CM, 0), MATCH(1, (StageDates_CM=G$2)*(Comments_CM=G$3), 0))),\"\",INDEX(Assessment_CM, MATCH($C18, Criteria_CM, 0), MATCH(1, (StageDates_CM=G$2)*(Comments_CM=G$3), 0))),\"-\")","v":"-"}]
[null,null,"CM 3.5","CM 3.5 Does the project consider the short, medium and long-term strategies and plans of other Ministries/agencies/jurisdictions within the study area?",{"$f":"IFERROR(IF(ISBLANK(INDEX(Assessment_CM, MATCH($C19, Criteria_CM, 0), MATCH(1, (StageDates_CM=E$2)*(Comments_CM=E$3), 0))),\"\",INDEX(Assessment_CM, MATCH($C19, Criteria_CM, 0), MATCH(1, (StageDates_CM=E$2)*(Comments_CM=E$3), 0))),\"-\")","v":"-"},{"$f":"IFERROR(IF(ISBLANK(INDEX(Assessment_CM, MATCH($C19, Criteria_CM, 0), MATCH(1, (StageDates_CM=F$2)*(Comments_CM=F$3), 0))),\"\",INDEX(Assessment_CM, MATCH($C19, Criteria_CM, 0), MATCH(1, (StageDates_CM=F$2)*(Comments_CM=F$3), 0))),\"-\")","v":"-"},{"$f":"IFERROR(IF(ISBLANK(INDEX(Assessment_CM, MATCH($C19, Criteria_CM, 0), MATCH(1, (StageDates_CM=G$2)*(Comments_CM=G$3), 0))),\"\",INDEX(Assessment_CM, MATCH($C19, Criteria_CM, 0), MATCH(1, (StageDates_CM=G$2)*(Comments_CM=G$3), 0))),\"-\")","v":"-"}]
[null,"Safe and Integrated Transportation Systems",null,"TS Objective 1: Provide a safe, seamless and reliable system across modes and jurisdictions"]
[null,null,"TS 1.1","TS 1.1 Are there other projects or initiatives planned for this area that could align with the project?",{"$f":"IFERROR(IF(ISBLANK(INDEX(Assessment_TS, MATCH($C21, Criteria_TS, 0), MATCH(1, (StageDates_TS=E$2)*(Comments_TS=E$3), 0))),\"\",INDEX(Assessment_TS, MATCH($C21, Criteria_TS, 0), MATCH(1, (StageDates_TS=E$2)*(Comments_TS=E$3), 0))),\"-\")","v":"-"},{"$f":"IFERROR(IF(ISBLANK(INDEX(Assessment_TS, MATCH($C21, Criteria_TS, 0), MATCH(1, (StageDates_TS=F$2)*(Comments_TS=F$3), 0))),\"\",INDEX(Assessment_TS, MATCH($C21, Criteria_TS, 0), MATCH(1, (StageDates_TS=F$2)*(Comments_TS=F$3), 0))),\"-\")","v":"-"},{"$f":"IFERROR(IF(ISBLANK(INDEX(Assessment_TS, MATCH($C21, Criteria_TS, 0), MATCH(1, (StageDates_TS=G$2)*(Comments_TS=G$3), 0))),\"\",INDEX(Assessment_TS, MATCH($C21, Criteria_TS, 0), MATCH(1, (StageDates_TS=G$2)*(Comments_TS=G$3), 0))),\"-\")","v":"-"}]
[null,null,"TS 1.2","TS 1.2 Could the project reduce serious traffic injuries and fatalities for vehicles, pedestrians, and cyclists thereby supporting the Vision Zero* initiative?\n\n*Vision Zero is a strategy to eliminate all traffic fatalities and severe injuries, while increasing safe, healthy, equitable mobility for all.",{"$f":"IFERROR(IF(ISBLANK(INDEX(Assessment_TS, MATCH($C22, Criteria_TS, 0), MATCH(1, (StageDates_TS=E$2)*(Comments_TS=E$3), 0))),\"\",INDEX(Assessment_TS, MATCH($C22, Criteria_TS, 0), MATCH(1, (StageDates_TS=E$2)*(Comments_TS=E$3), 0))),\"-\")","v":"-"},{"$f":"IFERROR(IF(ISBLANK(INDEX(Assessment_TS, MATCH($C22, Criteria_TS, 0), MATCH(1, (StageDates_TS=F$2)*(Comments_TS=F$3), 0))),\"\",INDEX(Assessment_TS, MATCH($C22, Criteria_TS, 0), MATCH(1, (StageDates_TS=F$2)*(Comments_TS=F$3), 0))),\"-\")","v":"-"},{"$f":"IFERROR(IF(ISBLANK(INDEX(Assessment_TS, MATCH($C22, Criteria_TS, 0), MATCH(1, (StageDates_TS=G$2)*(Comments_TS=G$3), 0))),\"\",INDEX(Assessment_TS, MATCH($C22, Criteria_TS, 0), MATCH(1, (StageDates_TS=G$2)*(Comments_TS=G$3), 0))),\"-\")","v":"-"}]
[null,null,"TS 1.3","TS 1.3 Could the project consider integration with existing transportation systems, such as roads, bridges, tunnels, railways, etc. to seamlessly move goods and people? ",{"$f":"IFERROR(IF(ISBLANK(INDEX(Assessment_TS, MATCH($C23, Criteria_TS, 0), MATCH(1, (StageDates_TS=E$2)*(Comments_TS=E$3), 0))),\"\",INDEX(Assessment_TS, MATCH($C23, Criteria_TS, 0), MATCH(1, (StageDates_TS=E$2)*(Comments_TS=E$3), 0))),\"-\")","v":"-"},{"$f":"IFERROR(IF(ISBLANK(INDEX(Assessment_TS, MATCH($C23, Criteria_TS, 0), MATCH(1, (StageDates_TS=F$2)*(Comments_TS=F$3), 0))),\"\",INDEX(Assessment_TS, MATCH($C23, Criteria_TS, 0), MATCH(1, (StageDates_TS=F$2)*(Comments_TS=F$3), 0))),\"-\")","v":"-"},{"$f":"IFERROR(IF(ISBLANK(INDEX(Assessment_TS, MATCH($C23, Criteria_TS, 0), MATCH(1, (StageDates_TS=G$2)*(Comments_TS=G$3), 0))),\"\",INDEX(Assessment_TS, MATCH($C23, Criteria_TS, 0), MATCH(1, (StageDates_TS=G$2)*(Comments_TS=G$3), 0))),\"-\")","v":"-"}]
[null,null,"TS 1.4","TS 1.4 Could the project enhance or improve the ability to seamlessly and safely transfer among various modes of transportation within a multi-modal transportation system?",{"$f":"IFERROR(IF(ISBLANK(INDEX(Assessment_TS, MATCH($C24, Criteria_TS, 0), MATCH(1, (StageDates_TS=E$2)*(Comments_TS=E$3), 0))),\"\",INDEX(Assessment_TS, MATCH($C24, Criteria_TS, 0), MATCH(1, (StageDates_TS=E$2)*(Comments_TS=E$3), 0))),\"-\")","v":"-"},{"$f":"IFERROR(IF(ISBLANK(INDEX(Assessment_TS, MATCH($C24, Criteria_TS, 0), MATCH(1, (StageDates_TS=F$2)*(Comments_TS=F$3), 0))),\"\",INDEX(Assessment_TS, MATCH($C24, Criteria_TS, 0), MATCH(1, (StageDates_TS=F$2)*(Comments_TS=F$3), 0))),\"-\")","v":"-"},{"$f":"IFERROR(IF(ISBLANK(INDEX(Assessment_TS, MATCH($C24, Criteria_TS, 0), MATCH(1, (StageDates_TS=G$2)*(Comments_TS=G$3), 0))),\"\",INDEX(Assessment_TS, MATCH($C24, Criteria_TS, 0), MATCH(1, (StageDates_TS=G$2)*(Comments_TS=G$3), 0))),\"-\")","v":"-"}]
[null,null,null,"TS Objective 2: Enable alternative mode choices for people and goods to reduce total vehicle travel activity within networks"]
[null,null,"TS 2.1","TS 2.1 Could the project make active transportation and public transit more convenient by increasing safety, accessibility, directness, performance and reliability?",{"$f":"IFERROR(IF(ISBLANK(INDEX(Assessment_TS, MATCH($C26, Criteria_TS, 0), MATCH(1, (StageDates_TS=E$2)*(Comments_TS=E$3), 0))),\"\",INDEX(Assessment_TS, MATCH($C26, Criteria_TS, 0), MATCH(1, (StageDates_TS=E$2)*(Comments_TS=E$3), 0))),\"-\")","v":"-"},{"$f":"IFERROR(IF(ISBLANK(INDEX(Assessment_TS, MATCH($C26, Criteria_TS, 0), MATCH(1, (StageDates_TS=F$2)*(Comments_TS=F$3), 0))),\"\",INDEX(Assessment_TS, MATCH($C26, Criteria_TS, 0), MATCH(1, (StageDates_TS=F$2)*(Comments_TS=F$3), 0))),\"-\")","v":"-"},{"$f":"IFERROR(IF(ISBLANK(INDEX(Assessment_TS, MATCH($C26, Criteria_TS, 0), MATCH(1, (StageDates_TS=G$2)*(Comments_TS=G$3), 0))),\"\",INDEX(Assessment_TS, MATCH($C26, Criteria_TS, 0), MATCH(1, (StageDates_TS=G$2)*(Comments_TS=G$3), 0))),\"-\")","v":"-"}]
[null,null,"TS 2.2","TS 2.2 Could the project result in a more efficient and reliable supply chain for goods movement?",{"$f":"IFERROR(IF(ISBLANK(INDEX(Assessment_TS, MATCH($C27, Criteria_TS, 0), MATCH(1, (StageDates_TS=E$2)*(Comments_TS=E$3), 0))),\"\",INDEX(Assessment_TS, MATCH($C27, Criteria_TS, 0), MATCH(1, (StageDates_TS=E$2)*(Comments_TS=E$3), 0))),\"-\")","v":"-"},{"$f":"IFERROR(IF(ISBLANK(INDEX(Assessment_TS, MATCH($C27, Criteria_TS, 0), MATCH(1, (StageDates_TS=F$2)*(Comments_TS=F$3), 0))),\"\",INDEX(Assessment_TS, MATCH($C27, Criteria_TS, 0), MATCH(1, (StageDates_TS=F$2)*(Comments_TS=F$3), 0))),\"-\")","v":"-"},{"$f":"IFERROR(IF(ISBLANK(INDEX(Assessment_TS, MATCH($C27, Criteria_TS, 0), MATCH(1, (StageDates_TS=G$2)*(Comments_TS=G$3), 0))),\"\",INDEX(Assessment_TS, MATCH($C27, Criteria_TS, 0), MATCH(1, (StageDates_TS=G$2)*(Comments_TS=G$3), 0))),\"-\")","v":"-"}]
[null,null,null,"TS Objective 3: Invest in public transportation and active transportation infrastructure that creates choices for all users"]
[null,null,"TS 3.1","TS 3.1 Are there opportunities for incorporating or expanding public transit or active transportation infrastructure? E.g. widened shoulder, improved transit stops, multi use path, cycle highway.",{"$f":"IFERROR(IF(ISBLANK(INDEX(Assessment_TS, MATCH($C29, Criteria_TS, 0), MATCH(1, (StageDates_TS=E$2)*(Comments_TS=E$3), 0))),\"\",INDEX(Assessment_TS, MATCH($C29, Criteria_TS, 0), MATCH(1, (StageDates_TS=E$2)*(Comments_TS=E$3), 0))),\"-\")","v":"-"},{"$f":"IFERROR(IF(ISBLANK(INDEX(Assessment_TS, MATCH($C29, Criteria_TS, 0), MATCH(1, (StageDates_TS=F$2)*(Comments_TS=F$3), 0))),\"\",INDEX(Assessment_TS, MATCH($C29, Criteria_TS, 0), MATCH(1, (StageDates_TS=F$2)*(Comments_TS=F$3), 0))),\"-\")","v":"-"},{"$f":"IFERROR(IF(ISBLANK(INDEX(Assessment_TS, MATCH($C29, Criteria_TS, 0), MATCH(1, (StageDates_TS=G$2)*(Comments_TS=G$3), 0))),\"\",INDEX(Assessment_TS, MATCH($C29, Criteria_TS, 0), MATCH(1, (StageDates_TS=G$2)*(Comments_TS=G$3), 0))),\"-\")","v":"-"}]
[null,null,"TS 3.2","TS 3.2 Could the project create/promote community-specific public transit and active transportation networks that are safe, accessible, and convenient for all ages and abilities?",{"$f":"IFERROR(IF(ISBLANK(INDEX(Assessment_TS, MATCH($C30, Criteria_TS, 0), MATCH(1, (StageDates_TS=E$2)*(Comments_TS=E$3), 0))),\"\",INDEX(Assessment_TS, MATCH($C30, Criteria_TS, 0), MATCH(1, (StageDates_TS=E$2)*(Comments_TS=E$3), 0))),\"-\")","v":"-"},{"$f":"IFERROR(IF(ISBLANK(INDEX(Assessment_TS, MATCH($C30, Criteria_TS, 0), MATCH(1, (StageDates_TS=F$2)*(Comments_TS=F$3), 0))),\"\",INDEX(Assessment_TS, MATCH($C30, Criteria_TS, 0), MATCH(1, (StageDates_TS=F$2)*(Comments_TS=F$3), 0))),\"-\")","v":"-"},{"$f":"IFERROR(IF(ISBLANK(INDEX(Assessment_TS, MATCH($C30, Criteria_TS, 0), MATCH(1, (StageDates_TS=G$2)*(Comments_TS=G$3), 0))),\"\",INDEX(Assessment_TS, MATCH($C30, Criteria_TS, 0), MATCH(1, (StageDates_TS=G$2)*(Comments_TS=G$3), 0))),\"-\")","v":"-"}]
[null,null,"TS 3.3","TS 3.3 Could the project support implementation of new mobility solutions such as car-share, ride-share, mobility hubs*, scooters, etc.?\n\n*Mobility hub is a place where different sustainable transportation modes - walking, biking, transit, and shared mobility - are integrated seamlessly to help promote connectivity and support surrounding land uses. This can range from a bus stop with parking for shared bikes by a cycle route to a transit station where different sustainable transportation modes converge and where there is a concentration of employment, housing, shopping, and/or recreation.",{"$f":"IFERROR(IF(ISBLANK(INDEX(Assessment_TS, MATCH($C31, Criteria_TS, 0), MATCH(1, (StageDates_TS=E$2)*(Comments_TS=E$3), 0))),\"\",INDEX(Assessment_TS, MATCH($C31, Criteria_TS, 0), MATCH(1, (StageDates_TS=E$2)*(Comments_TS=E$3), 0))),\"-\")","v":"-"},{"$f":"IFERROR(IF(ISBLANK(INDEX(Assessment_TS, MATCH($C31, Criteria_TS, 0), MATCH(1, (StageDates_TS=F$2)*(Comments_TS=F$3), 0))),\"\",INDEX(Assessment_TS, MATCH($C31, Criteria_TS, 0), MATCH(1, (StageDates_TS=F$2)*(Comments_TS=F$3), 0))),\"-\")","v":"-"},{"$f":"IFERROR(IF(ISBLANK(INDEX(Assessment_TS, MATCH($C31, Criteria_TS, 0), MATCH(1, (StageDates_TS=G$2)*(Comments_TS=G$3), 0))),\"\",INDEX(Assessment_TS, MATCH($C31, Criteria_TS, 0), MATCH(1, (StageDates_TS=G$2)*(Comments_TS=G$3), 0))),\"-\")","v":"-"}]
[null,"Economic Competitiveness and Prosperity",null,"EC Objective 1: Connect people to jobs and services"]
[null,null,"EC 1.1","EC 1.1 Could the project improve access to workforce, employment opportunities, or educational opportunities by supporting a range of transportation options including, public transit, active transportation, and car share?",{"$f":"IFERROR(IF(ISBLANK(INDEX(Assessment_EC, MATCH($C33, Criteria_EC, 0), MATCH(1, (StageDates_EC=E$2)*(Comments_EC=E$3), 0))),\"\",INDEX(Assessment_EC, MATCH($C33, Criteria_EC, 0), MATCH(1, (StageDates_EC=E$2)*(Comments_EC=E$3), 0))),\"-\")","v":"-"},{"$f":"IFERROR(IF(ISBLANK(INDEX(Assessment_EC, MATCH($C33, Criteria_EC, 0), MATCH(1, (StageDates_EC=F$2)*(Comments_EC=F$3), 0))),\"\",INDEX(Assessment_EC, MATCH($C33, Criteria_EC, 0), MATCH(1, (StageDates_EC=F$2)*(Comments_EC=F$3), 0))),\"-\")","v":"-"},{"$f":"IFERROR(IF(ISBLANK(INDEX(Assessment_EC, MATCH($C33, Criteria_EC, 0), MATCH(1, (StageDates_EC=G$2)*(Comments_EC=G$3), 0))),\"\",INDEX(Assessment_EC, MATCH($C33, Criteria_EC, 0), MATCH(1, (StageDates_EC=G$2)*(Comments_EC=G$3), 0))),\"-\")","v":"-"}]
[null,null,"EC 1.2","EC 1.2 Could the project improve access to community and business services by supporting a range of transportation options including, public transit, active transportation, and car share?",{"$f":"IFERROR(IF(ISBLANK(INDEX(Assessment_EC, MATCH($C34, Criteria_EC, 0), MATCH(1, (StageDates_EC=E$2)*(Comments_EC=E$3), 0))),\"\",INDEX(Assessment_EC, MATCH($C34, Criteria_EC, 0), MATCH(1, (StageDates_EC=E$2)*(Comments_EC=E$3), 0))),\"-\")","v":"-"},{"$f":"IFERROR(IF(ISBLANK(INDEX(Assessment_EC, MATCH($C34, Criteria_EC, 0), MATCH(1, (StageDates_EC=F$2)*(Comments_EC=F$3), 0))),\"\",INDEX(Assessment_EC, MATCH($C34, Criteria_EC, 0), MATCH(1, (StageDates_EC=F$2)*(Comments_EC=F$3), 0))),\"-\")","v":"-"},{"$f":"IFERROR(IF(ISBLANK(INDEX(Assessment_EC, MATCH($C34, Criteria_EC, 0), MATCH(1, (StageDates_EC=G$2)*(Comments_EC=G$3), 0))),\"\",INDEX(Assessment_EC, MATCH($C34, Criteria_EC, 0), MATCH(1, (StageDates_EC=G$2)*(Comments_EC=G$3), 0))),\"-\")","v":"-"}]
[null,null,null,"EC Objective 2: Facilitate moving goods to markets with infrastructure and services"]
[null,null,"EC 2.1","EC 2.1 Could the project enhance goods movement efficiency and reliability?",{"$f":"IFERROR(IF(ISBLANK(INDEX(Assessment_EC, MATCH($C36, Criteria_EC, 0), MATCH(1, (StageDates_EC=E$2)*(Comments_EC=E$3), 0))),\"\",INDEX(Assessment_EC, MATCH($C36, Criteria_EC, 0), MATCH(1, (StageDates_EC=E$2)*(Comments_EC=E$3), 0))),\"-\")","v":"-"},{"$f":"IFERROR(IF(ISBLANK(INDEX(Assessment_EC, MATCH($C36, Criteria_EC, 0), MATCH(1, (StageDates_EC=F$2)*(Comments_EC=F$3), 0))),\"\",INDEX(Assessment_EC, MATCH($C36, Criteria_EC, 0), MATCH(1, (StageDates_EC=F$2)*(Comments_EC=F$3), 0))),\"-\")","v":"-"},{"$f":"IFERROR(IF(ISBLANK(INDEX(Assessment_EC, MATCH($C36, Criteria_EC, 0), MATCH(1, (StageDates_EC=G$2)*(Comments_EC=G$3), 0))),\"\",INDEX(Assessment_EC, MATCH($C36, Criteria_EC, 0), MATCH(1, (StageDates_EC=G$2)*(Comments_EC=G$3), 0))),\"-\")","v":"-"}]
[null,null,"EC 2.2","EC 2.2 Could the project result in a more seamless and reliable transportation of goods to local and international customers? E.g. additional lanes, improved road conditions.",{"$f":"IFERROR(IF(ISBLANK(INDEX(Assessment_EC, MATCH($C37, Criteria_EC, 0), MATCH(1, (StageDates_EC=E$2)*(Comments_EC=E$3), 0))),\"\",INDEX(Assessment_EC, MATCH($C37, Criteria_EC, 0), MATCH(1, (StageDates_EC=E$2)*(Comments_EC=E$3), 0))),\"-\")","v":"-"},{"$f":"IFERROR(IF(ISBLANK(INDEX(Assessment_EC, MATCH($C37, Criteria_EC, 0), MATCH(1, (StageDates_EC=F$2)*(Comments_EC=F$3), 0))),\"\",INDEX(Assessment_EC, MATCH($C37, Criteria_EC, 0), MATCH(1, (StageDates_EC=F$2)*(Comments_EC=F$3), 0))),\"-\")","v":"-"},{"$f":"IFERROR(IF(ISBLANK(INDEX(Assessment_EC, MATCH($C37, Criteria_EC, 0), MATCH(1, (StageDates_EC=G$2)*(Comments_EC=G$3), 0))),\"\",INDEX(Assessment_EC, MATCH($C37, Criteria_EC, 0), MATCH(1, (StageDates_EC=G$2)*(Comments_EC=G$3), 0))),\"-\")","v":"-"}]
[null,null,"EC 2.3","EC 2.3 Could the project enhance the competitiveness BC’s transportation networks, such as by bringing goods to market faster?",{"$f":"IFERROR(IF(ISBLANK(INDEX(Assessment_EC, MATCH($C38, Criteria_EC, 0), MATCH(1, (StageDates_EC=E$2)*(Comments_EC=E$3), 0))),\"\",INDEX(Assessment_EC, MATCH($C38, Criteria_EC, 0), MATCH(1, (StageDates_EC=E$2)*(Comments_EC=E$3), 0))),\"-\")","v":"-"},{"$f":"IFERROR(IF(ISBLANK(INDEX(Assessment_EC, MATCH($C38, Criteria_EC, 0), MATCH(1, (StageDates_EC=F$2)*(Comments_EC=F$3), 0))),\"\",INDEX(Assessment_EC, MATCH($C38, Criteria_EC, 0), MATCH(1, (StageDates_EC=F$2)*(Comments_EC=F$3), 0))),\"-\")","v":"-"},{"$f":"IFERROR(IF(ISBLANK(INDEX(Assessment_EC, MATCH($C38, Criteria_EC, 0), MATCH(1, (StageDates_EC=G$2)*(Comments_EC=G$3), 0))),\"\",INDEX(Assessment_EC, MATCH($C38, Criteria_EC, 0), MATCH(1, (StageDates_EC=G$2)*(Comments_EC=G$3), 0))),\"-\")","v":"-"}]
[null,null,null,"EC Objective 3: Plan land use to maximize economic development potential"]
[null,null,"EC 3.1","EC 3.1 Could the project support economic development e.g., employment, access to industrial lands, improved access to urban job centres.",{"$f":"IFERROR(IF(ISBLANK(INDEX(Assessment_EC, MATCH($C40, Criteria_EC, 0), MATCH(1, (StageDates_EC=E$2)*(Comments_EC=E$3), 0))),\"\",INDEX(Assessment_EC, MATCH($C40, Criteria_EC, 0), MATCH(1, (StageDates_EC=E$2)*(Comments_EC=E$3), 0))),\"-\")","v":"-"},{"$f":"IFERROR(IF(ISBLANK(INDEX(Assessment_EC, MATCH($C40, Criteria_EC, 0), MATCH(1, (StageDates_EC=F$2)*(Comments_EC=F$3), 0))),\"\",INDEX(Assessment_EC, MATCH($C40, Criteria_EC, 0), MATCH(1, (StageDates_EC=F$2)*(Comments_EC=F$3), 0))),\"-\")","v":"-"},{"$f":"IFERROR(IF(ISBLANK(INDEX(Assessment_EC, MATCH($C40, Criteria_EC, 0), MATCH(1, (StageDates_EC=G$2)*(Comments_EC=G$3), 0))),\"\",INDEX(Assessment_EC, MATCH($C40, Criteria_EC, 0), MATCH(1, (StageDates_EC=G$2)*(Comments_EC=G$3), 0))),\"-\")","v":"-"}]
[null,null,"EC 3.2","EC 3.2 Are there opportunities to collaborate with local governments, First Nations, or port authorities to encourage adequate supply and better utilization of employment or industrial lands?",{"$f":"IFERROR(IF(ISBLANK(INDEX(Assessment_EC, MATCH($C41, Criteria_EC, 0), MATCH(1, (StageDates_EC=E$2)*(Comments_EC=E$3), 0))),\"\",INDEX(Assessment_EC, MATCH($C41, Criteria_EC, 0), MATCH(1, (StageDates_EC=E$2)*(Comments_EC=E$3), 0))),\"-\")","v":"-"},{"$f":"IFERROR(IF(ISBLANK(INDEX(Assessment_EC, MATCH($C41, Criteria_EC, 0), MATCH(1, (StageDates_EC=F$2)*(Comments_EC=F$3), 0))),\"\",INDEX(Assessment_EC, MATCH($C41, Criteria_EC, 0), MATCH(1, (StageDates_EC=F$2)*(Comments_EC=F$3), 0))),\"-\")","v":"-"},{"$f":"IFERROR(IF(ISBLANK(INDEX(Assessment_EC, MATCH($C41, Criteria_EC, 0), MATCH(1, (StageDates_EC=G$2)*(Comments_EC=G$3), 0))),\"\",INDEX(Assessment_EC, MATCH($C41, Criteria_EC, 0), MATCH(1, (StageDates_EC=G$2)*(Comments_EC=G$3), 0))),\"-\")","v":"-"}]
[null,"Resilience and Climate Action",null,"CA Objective 1: Support transportation initiatives that result in lower GHG emissions"]
[null,null,"CA 1.1","CA 1.1 Could the project support the CleanBC Roadmap to 2030 Transportation Pathway action to reduce distance travelled by motor vehicle?",{"$f":"IFERROR(IF(ISBLANK(INDEX(Assessment_CA, MATCH($C43, Criteria_CA, 0), MATCH(1, (StageDates_CA=E$2)*(Comments_CA=E$3), 0))),\"\",INDEX(Assessment_CA, MATCH($C43, Criteria_CA, 0), MATCH(1, (StageDates_CA=E$2)*(Comments_CA=E$3), 0))),\"-\")","v":"-"},{"$f":"IFERROR(IF(ISBLANK(INDEX(Assessment_CA, MATCH($C43, Criteria_CA, 0), MATCH(1, (StageDates_CA=F$2)*(Comments_CA=F$3), 0))),\"\",INDEX(Assessment_CA, MATCH($C43, Criteria_CA, 0), MATCH(1, (StageDates_CA=F$2)*(Comments_CA=F$3), 0))),\"-\")","v":"-"},{"$f":"IFERROR(IF(ISBLANK(INDEX(Assessment_CA, MATCH($C43, Criteria_CA, 0), MATCH(1, (StageDates_CA=G$2)*(Comments_CA=G$3), 0))),\"\",INDEX(Assessment_CA, MATCH($C43, Criteria_CA, 0), MATCH(1, (StageDates_CA=G$2)*(Comments_CA=G$3), 0))),\"-\")","v":"-"}]
[null,null,"CA 1.2","CA 1.2 Could the project support the CleanBC, Roadmap to 2030 Transportation Pathway action to encourage a mode shift to more energy efficient transportation i.e., personal vehicle to walking, cycling, transit and commercial heavy duty on road vehicles goods movement to rail, water, and cargo bike?",{"$f":"IFERROR(IF(ISBLANK(INDEX(Assessment_CA, MATCH($C44, Criteria_CA, 0), MATCH(1, (StageDates_CA=E$2)*(Comments_CA=E$3), 0))),\"\",INDEX(Assessment_CA, MATCH($C44, Criteria_CA, 0), MATCH(1, (StageDates_CA=E$2)*(Comments_CA=E$3), 0))),\"-\")","v":"-"},{"$f":"IFERROR(IF(ISBLANK(INDEX(Assessment_CA, MATCH($C44, Criteria_CA, 0), MATCH(1, (StageDates_CA=F$2)*(Comments_CA=F$3), 0))),\"\",INDEX(Assessment_CA, MATCH($C44, Criteria_CA, 0), MATCH(1, (StageDates_CA=F$2)*(Comments_CA=F$3), 0))),\"-\")","v":"-"},{"$f":"IFERROR(IF(ISBLANK(INDEX(Assessment_CA, MATCH($C44, Criteria_CA, 0), MATCH(1, (StageDates_CA=G$2)*(Comments_CA=G$3), 0))),\"\",INDEX(Assessment_CA, MATCH($C44, Criteria_CA, 0), MATCH(1, (StageDates_CA=G$2)*(Comments_CA=G$3), 0))),\"-\")","v":"-"}]
[null,null,null,"CA Objective 2: Develop infrastructure solutions that emphasize future resiliency of transportation systems"]
[null,null,"CA 2.1","CA 2.1 Has a resiliency framework been considered/adopted in the project plans?",{"$f":"IFERROR(IF(ISBLANK(INDEX(Assessment_CA, MATCH($C46, Criteria_CA, 0), MATCH(1, (StageDates_CA=E$2)*(Comments_CA=E$3), 0))),\"\",INDEX(Assessment_CA, MATCH($C46, Criteria_CA, 0), MATCH(1, (StageDates_CA=E$2)*(Comments_CA=E$3), 0))),\"-\")","v":"-"},{"$f":"IFERROR(IF(ISBLANK(INDEX(Assessment_CA, MATCH($C46, Criteria_CA, 0), MATCH(1, (StageDates_CA=F$2)*(Comments_CA=F$3), 0))),\"\",INDEX(Assessment_CA, MATCH($C46, Criteria_CA, 0), MATCH(1, (StageDates_CA=F$2)*(Comments_CA=F$3), 0))),\"-\")","v":"-"},{"$f":"IFERROR(IF(ISBLANK(INDEX(Assessment_CA, MATCH($C46, Criteria_CA, 0), MATCH(1, (StageDates_CA=G$2)*(Comments_CA=G$3), 0))),\"\",INDEX(Assessment_CA, MATCH($C46, Criteria_CA, 0), MATCH(1, (StageDates_CA=G$2)*(Comments_CA=G$3), 0))),\"-\")","v":"-"}]
[null,null,"CA 2.2","CA 2.2 Does the project integrate design elements aimed primarily at addressing long-term resiliency?",{"$f":"IFERROR(IF(ISBLANK(INDEX(Assessment_CA, MATCH($C47, Criteria_CA, 0), MATCH(1, (StageDates_CA=E$2)*(Comments_CA=E$3), 0))),\"\",INDEX(Assessment_CA, MATCH($C47, Criteria_CA, 0), MATCH(1, (StageDates_CA=E$2)*(Comments_CA=E$3), 0))),\"-\")","v":"-"},{"$f":"IFERROR(IF(ISBLANK(INDEX(Assessment_CA, MATCH($C47, Criteria_CA, 0), MATCH(1, (StageDates_CA=F$2)*(Comments_CA=F$3), 0))),\"\",INDEX(Assessment_CA, MATCH($C47, Criteria_CA, 0), MATCH(1, (StageDates_CA=F$2)*(Comments_CA=F$3), 0))),\"-\")","v":"-"},{"$f":"IFERROR(IF(ISBLANK(INDEX(Assessment_CA, MATCH($C47, Criteria_CA, 0), MATCH(1, (StageDates_CA=G$2)*(Comments_CA=G$3), 0))),\"\",INDEX(Assessment_CA, MATCH($C47, Criteria_CA, 0), MATCH(1, (StageDates_CA=G$2)*(Comments_CA=G$3), 0))),\"-\")","v":"-"}]
[null,null,null,"CA Objective 3: Support resilient communities and infrastructure that can better adapt to climate change"]
[null,null,"CA 3.1","CA 3.1 Could this project help communities/\norganizations develop capacity to prepare, avoid/mitigate, absorb, recover and/or adapt to the effects of shocks and stresses of climate change?",{"$f":"IFERROR(IF(ISBLANK(INDEX(Assessment_CA, MATCH($C49, Criteria_CA, 0), MATCH(1, (StageDates_CA=E$2)*(Comments_CA=E$3), 0))),\"\",INDEX(Assessment_CA, MATCH($C49, Criteria_CA, 0), MATCH(1, (StageDates_CA=E$2)*(Comments_CA=E$3), 0))),\"-\")","v":"-"},{"$f":"IFERROR(IF(ISBLANK(INDEX(Assessment_CA, MATCH($C49, Criteria_CA, 0), MATCH(1, (StageDates_CA=F$2)*(Comments_CA=F$3), 0))),\"\",INDEX(Assessment_CA, MATCH($C49, Criteria_CA, 0), MATCH(1, (StageDates_CA=F$2)*(Comments_CA=F$3), 0))),\"-\")","v":"-"},{"$f":"IFERROR(IF(ISBLANK(INDEX(Assessment_CA, MATCH($C49, Criteria_CA, 0), MATCH(1, (StageDates_CA=G$2)*(Comments_CA=G$3), 0))),\"\",INDEX(Assessment_CA, MATCH($C49, Criteria_CA, 0), MATCH(1, (StageDates_CA=G$2)*(Comments_CA=G$3), 0))),\"-\")","v":"-"}]
[null,null,"CA 3.2","CA 3.2 Could the project reduce projected Vehicle Kilometres Travelled (VKT)? i.e. does the project support transit and active transportation? Are commute/travel times reduced?",{"$f":"IFERROR(IF(ISBLANK(INDEX(Assessment_CA, MATCH($C50, Criteria_CA, 0), MATCH(1, (StageDates_CA=E$2)*(Comments_CA=E$3), 0))),\"\",INDEX(Assessment_CA, MATCH($C50, Criteria_CA, 0), MATCH(1, (StageDates_CA=E$2)*(Comments_CA=E$3), 0))),\"-\")","v":"-"},{"$f":"IFERROR(IF(ISBLANK(INDEX(Assessment_CA, MATCH($C50, Criteria_CA, 0), MATCH(1, (StageDates_CA=F$2)*(Comments_CA=F$3), 0))),\"\",INDEX(Assessment_CA, MATCH($C50, Criteria_CA, 0), MATCH(1, (StageDates_CA=F$2)*(Comments_CA=F$3), 0))),\"-\")","v":"-"},{"$f":"IFERROR(IF(ISBLANK(INDEX(Assessment_CA, MATCH($C50, Criteria_CA, 0), MATCH(1, (StageDates_CA=G$2)*(Comments_CA=G$3), 0))),\"\",INDEX(Assessment_CA, MATCH($C50, Criteria_CA, 0), MATCH(1, (StageDates_CA=G$2)*(Comments_CA=G$3), 0))),\"-\")","v":"-"}]
[null,null,"CA 3.3","CA 3.3 Could the project help reduce emissions of air pollutants, such as: particulate matter (including dust), ground-level ozone, carbon monoxide, sulfur oxides, nitrogen oxides, lead, and volatile organic compounds?",{"$f":"IFERROR(IF(ISBLANK(INDEX(Assessment_CA, MATCH($C51, Criteria_CA, 0), MATCH(1, (StageDates_CA=E$2)*(Comments_CA=E$3), 0))),\"\",INDEX(Assessment_CA, MATCH($C51, Criteria_CA, 0), MATCH(1, (StageDates_CA=E$2)*(Comments_CA=E$3), 0))),\"-\")","v":"-"},{"$f":"IFERROR(IF(ISBLANK(INDEX(Assessment_CA, MATCH($C51, Criteria_CA, 0), MATCH(1, (StageDates_CA=F$2)*(Comments_CA=F$3), 0))),\"\",INDEX(Assessment_CA, MATCH($C51, Criteria_CA, 0), MATCH(1, (StageDates_CA=F$2)*(Comments_CA=F$3), 0))),\"-\")","v":"-"},{"$f":"IFERROR(IF(ISBLANK(INDEX(Assessment_CA, MATCH($C51, Criteria_CA, 0), MATCH(1, (StageDates_CA=G$2)*(Comments_CA=G$3), 0))),\"\",INDEX(Assessment_CA, MATCH($C51, Criteria_CA, 0), MATCH(1, (StageDates_CA=G$2)*(Comments_CA=G$3), 0))),\"-\")","v":"-"}]